bitfinex-derivatives/quotes_ETHF0:USTF0_20250803
["timestamp","ask_amount","ask_price","bid_price","bid_amount"]
[1754198644812,2.4474,3451.7,3451.6,4.4013]
[1754198645212,2.4474,3451.7,3451.6,4.8331]
[1754198645516,2.4474,3451.7,3451.6,5.3332]
[1754198645711,2.4474,3451.7,3451.6,5.6457]
[1754198654727,2.4474,3451.7,3451.6,6.88200746]
[1754198659833,2.4474,3451.7,3451.6,4.44410746]
[1754198660332,2.4474,3451.7,3451.6,6.85860746]
[1754198661632,2.4474,3451.7,3451.6,6.02630746]
[1754198661923,2.4474,3451.7,3451.6,6.85860746]
[1754198662431,2.4474,3451.7,3451.6,6.02630746]
[1754198662631,2.4474,3451.7,3451.6,6.85860746]
[1754198663436,2.4474,3451.7,3451.6,6.35850746]
[1754198663626,2.4474,3451.7,3451.6,6.85860746]
[1754198664821,2.4474,3451.7,3451.6,6.5455709]
[1754198669727,1.9316,3451.7,3451.6,6.5455709]
[1754198670329,2.434,3451.7,3451.6,6.5455709]
[1754198672837,1.9316,3451.7,3451.6,6.5455709]
[1754198673035,1.5926,3451.7,3451.6,6.5455709]
[1754198673335,1.1474,3451.7,3451.6,6.5455709]
[1754198674336,4.1310709,3452.6,3451.6,4.1310709]
[1754198674535,2.3927,3452.2,3452.1,3.5757109]
[1754198674735,2.3927,3452.2,3452.1,3.8919109]
[1754198678934,2.3927,3452.2,3452.1,2.96864]
[1754198679637,2.3927,3452.2,3452.1,0.8093]
[1754198679838,0.958,3451.7,3451.6,3.2078]
[1754198680141,2.3927,3451.7,3451.6,3.2078]
[1754198680637,2.3927,3451.7,3451.6,5.3720709]
[1754198680934,2.3927,3451.7,3451.6,4.9515]
[1754198681345,2.3927,3451.7,3451.6,4.0171]
[1754198681543,2.3927,3451.7,3451.6,3.2078]
[1754198681835,1.23114464,3452.2,3451.4,5.302]
[1754198681836,2.3927,3451.5,3451.4,5.302]
[1754198682044,0.958,3451.3,3451.2,23.0468]
[1754198682234,2.3927,3451.3,3451.2,23.0468]
[1754198683847,2.3927,3451.3,3451.2,23.532]
[1754198684249,2.3927,3451.3,3451.2,23.8561]
[1754198685147,2.3927,3451.3,3451.2,3.2078]
[1754198685346,2.3927,3451.3,3451.0,19.838]
[1754198685646,2.3927,3451.1,3451.0,19.838]
[1754198686450,0.958,3450.9,3450.8,4.4488]
[1754198686745,2.3927,3450.9,3450.8,24.2858]
[1754198686945,2.3927,3450.9,3450.8,23.3689]
[1754198687146,2.3927,3450.9,3450.8,23.8541]
[1754198687347,2.3927,3450.9,3450.8,4.0171]
[1754198687753,2.3927,3450.9,3450.8,4.4488]
[1754198688053,2.3927,3450.9,3450.8,4.9515]
[1754198689046,2.3927,3450.9,3450.8,6.82814464]
[1754198689746,1.4358,3450.9,3450.8,6.82814464]
[1754198689948,1.9124,3450.9,3450.8,6.82814464]
[1754198690354,2.3927,3450.9,3450.8,6.82814464]
[1754198692355,2.3927,3450.9,3450.8,26.66314464]
[1754198694452,2.3927,3450.9,3450.8,6.82814464]
[1754198694653,2.3927,3450.9,3450.8,26.66214464]
[1754198696960,1.9149,3451.2,3451.1,2.96909]
[1754198697456,2.3927,3451.2,3451.1,2.96909]
[1754198697958,2.3927,3451.2,3451.1,4.20023464]
[1754198698156,2.3927,3451.2,3451.1,2.96909]
[1754198700355,0.958,3451.2,3451.0,19.831]
[1754198700558,0.57955,3451.5,3451.0,19.831]
[1754198700559,0.958,3451.1,3451.0,19.831]
[1754198700759,2.3927,3451.1,3451.0,19.831]
[1754198701149,2.3927,3451.1,3451.0,21.0723]
[1754198701860,0.9493,3450.9,3450.8,3.2078]
[1754198702161,2.3745,3450.9,3450.8,3.2078]
[1754198703661,2.3745,3450.6,3450.5,21.8757]
[1754198703855,2.3745,3450.6,3450.5,22.1991]
[1754198704057,2.3745,3450.6,3450.5,23.43024464]
[1754198704262,3.6729,3451.2,3450.8,2.0362]
[1754198704454,1.4144,3451.1,3451.0,2.3691]
[1754198705166,2.3745,3451.1,3451.0,2.3691]
[1754198705763,2.3745,3451.1,3450.9,0.57964]
[1754198705969,2.3745,3451.0,3450.9,0.57964]
[1754198706165,0.9493,3451.0,3450.8,3.78745]
[1754198706355,2.3745,3450.9,3450.8,3.78745]
[1754198706668,2.3745,3450.9,3450.8,6.15655]
[1754198707971,2.3745,3450.9,3450.8,3.2078]
[1754198708367,0.9493,3450.6,3450.5,20.4067]
[1754198708570,2.3745,3450.6,3450.5,20.4067]
[1754198709368,2.3745,3450.6,3450.5,21.1926]
[1754198709675,2.3745,3450.6,3450.5,22.1235]
[1754198709982,2.3745,3450.6,3450.5,21.6246]
[1754198710583,2.3745,3450.6,3450.5,22.1235]
[1754198712786,2.3745,3450.6,3450.5,22.4524]
[1754198712978,2.3745,3450.6,3450.5,22.7758]
[1754198714989,2.3745,3450.6,3450.5,22.1961]
[1754198718391,2.3745,3450.6,3450.5,2.3691]
[1754198718693,2.3745,3450.6,3450.5,22.1931]
[1754198719093,2.3745,3450.6,3450.5,2.3691]
[1754198719296,2.3745,3450.6,3450.5,22.1911]
[1754198720288,1.9094,3450.6,3450.5,2.3691]
[1754198720494,1.4097,3451.2,3451.1,0.6618]
[1754198720696,1.4097,3451.2,3451.1,2.3691]
[1754198721086,2.3745,3451.2,3451.1,2.3691]
[1754198722690,2.3745,3451.2,3451.1,1.2179]
[1754198722882,2.3745,3451.2,3451.1,0.7859]
[1754198723087,0.9493,3451.0,3450.9,1.2179]
[1754198723295,2.3745,3451.0,3450.9,1.2179]
[1754198723494,2.3745,3451.0,3450.9,1.7168]
[1754198724298,2.3745,3451.0,3450.9,2.3691]
[1754198727598,1.8748,3451.4,3451.3,2.94866]
[1754198728202,1.8748,3451.6,3451.5,1.56474]
[1754198728400,1.8748,3451.6,3451.5,2.94864]
[1754198728799,2.3745,3451.6,3451.5,2.94864]
[1754198730389,2.3745,3452.1,3452.0,0.57944]
[1754198730587,2.3745,3452.1,3452.0,1.36534]
[1754198730802,2.3745,3452.1,3452.0,1.79864]
[1754198731698,2.3745,3452.1,3452.0,2.59654]
[1754198732094,2.3745,3452.1,3452.0,2.12754]
[1754198733097,2.3745,3452.1,3452.0,1.2192]
[1754198733300,2.3745,3452.1,3452.0,0.7859]
[1754198734101,2.3745,3452.1,3452.0,0.3329]
[1754198735701,2.3745,3452.1,3452.0,0.8083]
[1754198736397,1.449,3452.1,3452.0,0.8083]
[1754198736696,3.2078,3452.4,3452.3,0.5794]
[1754198736893,2.7061,3452.4,3452.3,2.8812]
[1754198737095,1.1121,3452.8,3452.7,0.6234]
[1754198737403,2.3708,3452.8,3452.7,1.5301]
[1754198737602,2.3708,3452.8,3452.7,1.209]
[1754198737803,2.3708,3452.8,3452.7,0.7777]
[1754198738001,2.3708,3452.8,3452.7,1.5301]
[1754198740001,3.2078,3453.5,3452.6,1.23114464]
[1754198740303,2.3708,3453.4,3453.3,1.5301]
[1754198743903,0.4837,3453.8,3453.2,0.57924]
[1754198744103,0.9505,3453.3,3453.2,1.20264]
[1754198744303,2.3708,3453.3,3453.2,1.20264]
[1754198744498,2.3708,3453.3,3453.2,1.63394]
[1754198744698,2.3708,3453.3,3453.2,2.10934]
[1754198745302,1.1163,3453.3,3453.2,2.10934]
[1754198745605,0.4837,3453.3,3453.2,2.10934]
[1754198746007,0.4837,3453.3,3453.2,3.34048464]
[1754198746896,24.0098,3454.0,3453.2,2.90918464]
[1754198747207,1.8871,3453.9,3453.8,2.10924]
[1754198747608,2.3708,3453.9,3453.8,2.10924]
[1754198752499,2.3708,3453.9,3453.8,0.88144]
[1754198752705,2.3708,3453.9,3453.3,3.2078]
[1754198752706,1.4203,3453.9,3453.4,1.78822]
[1754198752909,0.9505,3453.5,3453.4,0.88152]
[1754198753205,2.3708,3453.5,3453.4,1.35692]
[1754198753805,2.3708,3453.5,3453.4,0.57922]
[1754198754105,2.3708,3453.5,3453.4,1.35692]
[1754198754302,2.3708,3453.5,3453.4,2.10932]
[1754198755103,1.8917,3453.5,3453.4,2.10932]
[1754198755309,0.4837,3453.5,3453.4,1.5301]
[1754198756003,1.5738,3453.5,3453.4,1.5301]
[1754198756201,2.3708,3453.5,3453.4,1.5301]
[1754198757008,2.3708,3453.5,3453.4,2.10932]
[1754198758800,0.9505,3453.5,3453.3,3.78703]
[1754198759005,2.3708,3453.4,3453.3,3.78703]
[1754198759411,2.3708,3453.4,3453.3,4.56473]
[1754198759906,2.3708,3453.4,3453.3,3.2078]
[1754198762305,2.3708,3453.4,3453.3,3.5084]
[1754198762506,2.3708,3453.4,3453.3,3.994]
[1754198762814,2.3708,3453.4,3453.3,4.4272]
[1754198763312,2.3708,3453.4,3453.3,4.738]
[1754198764213,2.3708,3453.4,3453.3,3.994]
[1754198765011,2.3708,3453.4,3453.3,3.2078]
[1754198768106,2.3708,3453.4,3453.3,3.994]
[1754198768306,2.3708,3453.4,3453.3,4.7364]
[1754198768818,2.3708,3453.4,3453.3,4.4256]
[1754198770517,2.3708,3453.4,3453.3,4.7364]
[1754198770721,2.3708,3453.4,3453.3,1.5286]
[1754198771414,0.9505,3453.4,3453.2,0.4856]
[1754198771621,2.3576,3453.3,3453.2,0.7862]
[1754198773020,2.3576,3453.0,3452.9,4.4256]
[1754198773215,2.3576,3453.0,3452.9,3.5084]
[1754198773820,2.3576,3453.0,3452.9,3.2078]
[1754198774010,2.3576,3453.0,3452.9,4.7364]
[1754198774808,0.9436,3453.1,3453.0,1.5286]
[1754198775111,2.3576,3453.1,3452.9,3.2078]
[1754198775308,2.3576,3453.0,3452.9,3.94]
[1754198775508,2.3576,3453.0,3452.9,4.2508]
[1754198775918,2.3576,3453.0,3452.9,4.7364]
[1754198776417,2.3576,3453.0,3452.9,3.2078]
[1754198777317,2.3576,3453.0,3452.9,3.5084]
[1754198777521,2.3576,3453.0,3452.9,3.994]
[1754198778626,2.3576,3453.0,3452.9,4.4256]
[1754198779126,2.3576,3453.0,3452.9,3.994]
[1754198780716,2.3576,3453.0,3452.9,4.4256]
[1754198781725,2.3576,3453.0,3452.9,4.7364]
[1754198783620,1.8908,3453.0,3452.9,4.7364]
[1754198783826,2.3576,3453.0,3452.9,4.7364]
[1754198785127,0.57924,3453.3,3452.9,4.7364]
[1754198785422,0.6243,3453.1,3453.0,1.5286]
[1754198785613,1.5715,3453.1,3453.0,1.5286]
[1754198785928,1.8908,3453.1,3453.0,1.5286]
[1754198786227,2.3576,3453.1,3453.0,1.5286]
[1754198787225,1.49413648,3453.9,3453.1,0.9172]
[1754198787423,2.3576,3453.9,3453.8,1.5286]
[1754198787624,3.28420486,3453.9,3453.8,1.5286]
[1754198790019,1.70790486,3453.9,3453.8,0.3006]
[1754198790227,3.28420486,3453.9,3453.8,1.2178]
[1754198791423,1.8956,3453.6,3453.5,1.5286]
[1754198791622,2.3584,3453.6,3453.5,1.5286]
[1754198795529,0.4628,3453.5,3453.2,0.57924]
[1754198795725,1.5572,3453.5,3453.4,1.5037]
[1754198796831,0.9398,3453.6,3453.5,1.5037]
[1754198797034,2.2948,3453.6,3453.5,1.5037]
[1754198800438,1.1087,3453.6,3453.5,1.5037]
[1754198800634,0.4628,3453.6,3453.5,1.5037]
[1754198800834,0.7693,3453.8,3453.7,0.616]
[1754198801028,4.2078,3454.0,3453.7,0.616]
[1754198801029,4.6563,3454.0,3453.8,0.57915]
[1754198801236,5.1191,3454.0,3453.9,1.5037]
[1754198801535,2.2321,3454.0,3453.9,1.5037]
[1754198801739,1.7836,3454.0,3453.9,1.5037]
[1754198802239,1.4628,3454.0,3453.9,1.5037]
[1754198802433,1.0,3454.0,3453.9,1.5037]
[1754198804541,3.2948,3454.0,3453.9,1.5037]
[1754198805439,1.0,3454.0,3453.9,1.5037]
[1754198805639,1.4628,3454.0,3453.9,1.5037]
[1754198808037,1.7836,3454.0,3453.9,1.5037]
[1754198808241,1.0,3454.0,3453.9,1.5037]
[1754198808542,1.4628,3454.0,3453.9,1.5037]
[1754198808841,1.7836,3454.0,3453.9,1.5037]
[1754198809529,2.8511,3454.0,3453.9,1.5037]
[1754198809734,3.2948,3454.0,3453.9,1.5037]
[1754198813544,1.355,3453.9,3453.8,0.57915]
[1754198813755,2.2948,3453.9,3453.8,0.88135]
[1754198814044,2.2948,3453.9,3453.8,2.08285]
[1754198817943,1.4628,3454.0,3453.9,1.5037]
[1754198818147,2.8511,3454.0,3453.9,1.5037]
[1754198818640,1.0,3454.0,3453.9,2.73484464]
[1754198823244,1.4682,3454.0,3453.9,2.73484464]
[1754198823851,3.3026,3454.0,3453.9,0.3022]
[1754198824151,2.3026,3453.9,3453.8,1.34375]
[1754198824346,2.3026,3453.9,3453.8,1.77525]
[1754198824845,1.0,3454.0,3453.8,0.57915]
[1754198825147,2.3026,3453.9,3453.8,1.77525]
[1754198825352,2.3026,3453.9,3453.8,2.10385]
[1754198825549,2.8344,3454.0,3453.9,1.0932]
[1754198825742,2.8344,3454.0,3453.9,1.5247]
[1754198825944,1.0,3454.0,3453.9,0.3018]
[1754198826145,1.4682,3454.0,3453.9,1.5247]
[1754198826742,1.7664,3454.0,3453.9,1.5247]
[1754198827144,2.378,3454.0,3453.9,1.5247]
[1754198827347,3.3026,3454.0,3453.9,1.5247]
[1754198828850,1.4682,3454.0,3453.9,1.5247]
[1754198829749,1.0,3454.0,3453.9,1.5247]
[1754198831749,3.2578,3454.8,3454.1,0.8943]
[1754198831944,3.2578,3454.8,3454.0,0.57912]
[1754198831945,5.5604,3454.8,3454.7,2.1037]
[1754198832450,2.3526,3454.8,3454.7,2.1037]
[1754198833241,2.3526,3454.8,3454.7,1.3123]
[1754198833452,2.3526,3454.8,3454.7,1.3436]
[1754198833651,0.05,3454.8,3454.6,0.57901]
[1754198833850,1.8844,3454.8,3454.7,1.5247]
[1754198834153,1.8844,3454.8,3454.6,0.57901]
[1754198834353,0.9098,3454.7,3454.5,0.57903]
[1754198834554,2.3026,3454.6,3454.5,0.57903]
[1754198835552,2.3026,3454.5,3454.4,0.57905]
[1754198835756,2.3026,3454.5,3454.4,1.34365]
[1754198836054,2.3026,3454.5,3454.4,1.77495]
[1754198836952,2.3026,3454.5,3454.4,1.1959]
[1754198837353,1.861,3454.5,3454.4,1.5245]
[1754198837654,1.861,3454.5,3454.3,3.78686]
[1754198837655,2.3026,3454.4,3454.3,3.2078]
[1754198837856,2.3026,3454.4,3454.3,3.5096]
[1754198838056,2.3026,3454.4,3454.3,3.9724]
[1754198838248,2.3026,3454.4,3454.3,4.4037]
[1754198838855,2.3026,3454.4,3454.3,3.2078]
[1754198839360,1.3928,3454.3,3454.1,0.8941]
[1754198839656,2.3026,3454.1,3454.0,1.77501]
[1754198840556,2.3026,3454.1,3454.0,2.10361]
[1754198842560,2.3026,3454.1,3453.9,3.78693]
[1754198842759,2.3026,3454.0,3453.9,3.78693]
[1754198842964,2.3026,3454.0,3453.9,3.2078]
[1754198845257,0.9098,3453.8,3453.7,1.34377]
[1754198845554,2.3026,3453.8,3453.7,1.1959]
[1754198845756,2.3026,3453.8,3453.7,0.7646]
[1754198846956,2.3026,3453.8,3453.7,1.5245]
[1754198848863,2.3026,3453.8,3453.7,0.3018]
[1754198849055,2.3026,3453.7,3453.6,0.4628]
[1754198849561,2.3026,3453.2,3453.1,3.2078]
[1754198850259,1.8344,3452.8,3452.7,3.2078]
[1754198850454,2.3026,3452.8,3452.7,3.2078]
[1754198851857,0.9098,3452.8,3452.3,3.2078]
[1754198852061,0.9123,3452.4,3452.3,3.8213]
[1754198852262,2.2771,3452.4,3452.3,3.5182]
[1754198852767,2.2771,3452.4,3452.3,4.3752]
[1754198853166,2.2771,3452.4,3452.3,4.6783]
[1754198854262,1.8127,3453.0,3452.9,1.4705]
[1754198854562,1.0623,3453.0,3452.9,1.4705]
[1754198855366,1.3648,3453.7,3452.9,0.857]
[1754198855560,2.2771,3453.7,3453.6,0.3104]
[1754198856062,3.02423908,3453.7,3453.6,0.3104]
[1754198857269,2.2771,3453.7,3453.6,0.3104]
[1754198857769,3.02368815,3453.7,3453.6,0.3104]
[1754198858370,2.2771,3453.7,3453.6,0.3104]
[1754198860274,2.2771,3453.7,3453.6,1.4705]
[1754198861274,0.7531,3453.7,3453.6,1.4705]
[1754198861972,1.5115,3453.7,3453.6,1.4705]
[1754198862172,1.3615,3453.9,3453.8,0.6135]
[1754198862396,1.3615,3453.9,3453.8,1.4705]
[1754198862678,1.8127,3453.9,3453.8,1.4705]
[1754198863276,1.3635,3453.9,3453.8,1.4705]
[1754198863476,0.7531,3453.9,3453.8,1.4705]
[1754198865169,1.8127,3453.9,3453.8,1.4705]
[1754198865371,2.2771,3453.9,3453.8,1.4705]
[1754198866068,0.9123,3453.6,3453.5,3.2078]
[1754198866274,2.2771,3453.6,3453.5,3.2078]
[1754198866671,2.2771,3453.6,3453.5,3.5182]
[1754198866875,2.2771,3453.6,3453.5,3.9432]
[1754198867076,2.2771,3453.6,3453.5,4.6783]
[1754198867574,0.7531,3453.6,3453.5,4.6783]
[1754198868776,0.4512,3453.6,3453.5,4.6783]
[1754198869184,1.8127,3453.6,3453.1,3.2078]
[1754198869385,2.2771,3453.5,3453.4,0.3104]
[1754198869585,1.8127,3453.5,3453.4,0.7354]
[1754198869774,1.8127,3453.5,3453.4,1.0385]
[1754198870081,2.2771,3453.5,3453.4,1.4705]
[1754198879390,1.8127,3453.5,3453.4,1.4705]
[1754198880090,2.2771,3453.5,3453.4,1.4705]
[1754198880387,1.0623,3453.5,3453.4,1.4705]
[1754198881088,1.5115,3453.5,3453.4,1.4705]
[1754198881291,1.8127,3453.5,3453.4,1.4705]
[1754198881891,2.269,3453.5,3453.4,1.4705]
[1754198883088,0.57916,3453.8,3453.4,0.3104]
[1754198883395,2.78492,3454.0,3453.9,0.6141]
[1754198883690,2.78492,3454.0,3453.9,1.5084]
[1754198883892,2.2058,3454.0,3453.9,1.5084]
[1754198884289,0.4294,3454.0,3453.6,4.2535]
[1754198884483,1.7495,3454.0,3453.9,1.5084]
[1754198884784,2.2058,3454.1,3454.0,1.5084]
[1754198886487,2.2058,3454.1,3454.0,0.3036]
[1754198886806,2.2058,3453.7,3453.6,4.7162]
[1754198892905,2.2058,3453.7,3453.6,3.5114]
[1754198893904,2.2058,3453.7,3453.6,3.9741]
[1754198894901,2.2058,3453.7,3453.6,4.4057]
[1754198895294,2.2058,3453.7,3453.6,4.7162]
[1754198907412,1.7495,3453.7,3453.6,4.7162]
[1754198908716,2.2058,3453.7,3453.6,4.7162]
[1754198910712,1.7495,3453.7,3453.6,4.7162]
[1754198911307,0.4294,3454.4,3453.7,0.6141]
[1754198911624,2.71733437,3454.3,3454.2,1.5006]
[1754198911811,1.82993437,3454.3,3453.9,0.4317]
[1754198912011,0.9196,3454.1,3454.0,0.7493]
[1754198912212,2.241,3454.1,3454.0,0.7493]
[1754198912716,2.241,3454.1,3454.0,1.181]
[1754198913221,2.241,3454.1,3454.0,0.2945]
[1754198913720,2.241,3454.1,3454.0,0.7493]
[1754198914517,2.241,3454.1,3454.0,1.181]
[1754198915022,0.57909,3454.2,3453.6,3.78698]
[1754198915223,2.241,3453.7,3453.6,5.28828]
[1754198916124,2.241,3453.7,3453.6,4.7091]
[1754198918720,2.241,3453.7,3453.6,3.9571]
[1754198919116,2.241,3453.7,3453.6,4.3888]
[1754198919317,2.241,3453.7,3453.6,4.7091]
[1754198928631,1.8295,3453.7,3453.6,4.7091]
[1754198930526,2.241,3453.7,3453.6,4.7091]
[1754198935337,1.8295,3453.7,3453.6,4.7091]
[1754198936237,1.3311,3454.1,3454.0,2.08041]
[1754198936433,1.807,3454.1,3454.0,2.08041]
[1754198936629,2.241,3454.1,3454.0,2.08041]
[1754198937231,2.241,3454.4,3454.3,2.08036]
[1754198937430,2.42276066,3454.4,3454.3,2.08036]
[1754198938127,2.241,3454.4,3454.3,2.08036]
[1754198938335,0.9196,3454.4,3454.2,0.57908]
[1754198938630,2.241,3454.3,3454.2,1.03388]
[1754198939330,2.241,3454.3,3454.2,1.32838]
[1754198940839,2.241,3454.3,3454.2,0.57908]
[1754198942937,2.241,3454.3,3454.2,1.69428]
[1754198943838,2.241,3454.3,3454.2,0.2764]
[1754198944627,2.241,3454.3,3454.2,0.6843]
[1754198944933,2.241,3454.3,3454.2,1.1152]
[1754198947040,2.241,3454.3,3454.2,0.6843]
[1754198947338,2.241,3454.3,3454.2,0.2764]
[1754198948834,2.241,3454.3,3454.2,0.6843]
[1754198949638,2.241,3454.3,3454.2,0.2764]
[1754198950540,2.241,3454.3,3454.2,0.6843]
[1754198952445,2.241,3454.3,3454.2,1.1152]
[1754198952743,1.3783,3454.2,3454.1,0.57909]
[1754198952945,2.2744,3454.2,3454.1,0.98699]
[1754198953136,2.2744,3454.2,3454.1,1.26339]
[1754198953335,2.2744,3454.2,3454.1,1.69429]
[1754198953848,2.2744,3454.2,3454.1,1.26339]
[1754198954044,2.2744,3454.2,3454.0,3.2078]
[1754198954238,0.8961,3454.1,3454.0,3.2078]
[1754198954437,2.2744,3454.1,3454.0,3.2078]
[1754198955040,3.19663634,3454.1,3454.0,3.2078]
[1754198956855,2.2744,3454.1,3454.0,3.2078]
[1754198957045,2.2744,3454.1,3454.0,3.4842]
[1754198957248,2.2744,3454.1,3454.0,4.6361]
[1754198957449,2.2744,3454.1,3454.0,0.2764]
[1754198957843,2.2744,3454.1,3454.0,0.6843]
[1754198958248,2.2744,3454.1,3454.0,1.1152]
[1754198959850,2.2744,3453.7,3453.6,4.6361]
[1754198961647,0.4464,3453.7,3453.6,4.6361]
[1754198966049,0.7354,3453.7,3453.6,4.6361]
[1754198966257,1.0518,3453.7,3453.6,4.6361]
[1754198966455,2.2744,3453.7,3453.6,4.6361]
[1754198967153,2.2744,3453.7,3453.6,3.2078]
[1754198967349,1.3783,3453.6,3453.4,0.4079]
[1754198967551,2.2744,3453.5,3453.4,1.1152]
[1754198970652,2.2744,3453.5,3453.4,0.6843]
[1754198972256,2.2744,3453.5,3453.4,1.1139]
[1754198972466,2.2744,3453.5,3453.4,1.4371]
[1754198981758,2.2744,3453.5,3453.4,4.6449]
[1754198983362,2.2744,3453.5,3453.4,3.2078]
[1754198983563,2.2744,3453.5,3453.4,4.3327]
[1754198983951,2.2744,3453.5,3453.4,4.6559]
[1754198984560,3.2078,3454.3,3453.4,4.0614]
[1754198984766,1.7574,3453.7,3453.6,1.1249]
[1754198984958,2.1678,3453.7,3453.6,1.1249]
[1754198986059,0.8906,3453.5,3453.4,4.3327]
[1754198986259,2.1678,3453.5,3453.4,4.3327]
[1754198986866,2.1678,3453.5,3453.4,4.6559]
[1754198987762,0.8784,3453.8,3453.4,4.38151]
[1754198987966,1.1661,3453.6,3453.5,1.4481]
[1754198988167,2.1678,3453.6,3453.5,1.4481]
[1754198989265,1.769,3453.6,3453.5,1.4481]
[1754198989464,2.1678,3453.6,3453.5,1.4481]
[1754198994667,2.1678,3453.6,3453.4,3.2078]
[1754198994870,3.09029441,3453.5,3453.4,3.2078]
[1754198995381,3.09029441,3453.5,3453.4,3.9037]
[1754198996490,0.8906,3453.1,3453.0,3.2078]
[1754198996774,0.8906,3453.1,3453.0,3.9037]
[1754198996775,3.09029441,3453.1,3453.0,3.9037]
[1754198996977,3.09029441,3453.1,3453.0,3.2078]
[1754198998770,2.1678,3453.1,3453.0,3.2078]
[1754199000370,2.1678,3452.8,3452.7,1.1249]
[1754199001578,2.1678,3452.8,3452.7,0.6959]
[1754199001788,2.1294,3452.6,3452.5,3.8745]
[1754199002175,2.1294,3452.6,3452.5,4.3041]
[1754199002685,3.35996466,3452.6,3452.5,3.8745]
[1754199003076,2.1294,3452.6,3452.5,3.8745]
[1754199003772,2.1294,3452.6,3452.5,4.3041]
[1754199005684,2.1294,3452.6,3452.5,3.2078]
[1754199005984,3.35996466,3452.6,3452.5,3.2078]
[1754199006285,0.8498,3452.1,3452.0,0.4046]
[1754199006487,2.1294,3452.1,3452.0,0.6667]
[1754199006682,2.1294,3452.1,3452.0,1.0963]
[1754199007083,2.1294,3452.1,3452.0,0.2621]
[1754199007586,1.4272,3451.7,3451.6,4.08631]
[1754199007785,1.4272,3451.7,3451.6,4.77801]
[1754199008180,1.4272,3451.7,3451.6,5.18261]
[1754199008483,1.7068,3451.7,3451.6,5.18261]
[1754199008886,1.7068,3451.7,3451.6,4.6031]
[1754199010189,2.1294,3451.7,3451.6,4.6031]
[1754199012290,2.1294,3451.7,3451.6,3.2078]
[1754199013082,2.1294,3451.7,3451.6,3.6124]
[1754199013283,1.42937,3451.3,3451.2,0.9657]
[1754199013482,2.1294,3451.3,3451.2,1.3953]
[1754199016278,2.1294,3451.3,3451.1,3.2078]
[1754199016483,2.1294,3451.2,3451.1,4.6031]
[1754199017090,1.4272,3451.2,3451.1,4.6031]
[1754199017288,0.6654,3451.2,3451.1,4.6031]
[1754199017478,0.3929,3451.2,3451.1,4.6031]
[1754199017683,0.857,3451.2,3451.1,4.6031]
[1754199017882,1.7068,3451.2,3451.1,4.6031]
[1754199018682,0.6654,3451.2,3451.1,4.6031]
[1754199019085,0.3929,3451.2,3451.1,4.6031]
[1754199020289,1.1295,3451.2,3451.1,4.6031]
[1754199020792,2.1294,3451.2,3451.1,4.6031]
[1754199021086,2.1294,3451.2,3451.1,3.2078]
[1754199021294,2.1294,3451.2,3451.1,4.6031]
[1754199022786,0.6654,3451.2,3451.1,4.6031]
[1754199022991,1.81007466,3451.7,3451.1,4.6031]
[1754199022992,0.3929,3451.4,3451.2,1.41379]
[1754199023192,1.1295,3451.4,3451.3,1.3953]
[1754199023384,1.4272,3451.4,3451.3,1.3953]
[1754199025791,2.1294,3451.4,3451.3,1.3953]
[1754199026200,1.7068,3451.4,3451.3,1.3953]
[1754199026496,1.4272,3451.4,3451.3,1.3953]
[1754199026692,2.1294,3451.4,3451.3,1.3953]
[1754199030696,1.7068,3451.4,3451.3,1.3953]
[1754199032095,0.3929,3451.4,3451.3,1.3953]
[1754199032297,0.4055,3451.9,3451.8,0.2577]
[1754199032502,0.4055,3451.9,3451.8,1.4107]
[1754199032503,2.1258,3451.9,3451.8,1.4107]
[1754199032696,0.4055,3451.9,3451.8,1.4107]
[1754199033394,1.1434,3451.9,3451.8,1.4107]
[1754199033594,2.1258,3451.9,3451.8,1.4107]
[1754199042203,0.8506,3451.9,3451.5,3.2078]
[1754199042406,2.1258,3451.6,3451.5,3.4655]
[1754199042705,2.1258,3451.6,3451.5,3.8665]
[1754199043302,2.1258,3451.6,3451.5,4.2979]
[1754199043610,2.1258,3451.6,3451.5,4.6185]
[1754199047410,1.7202,3451.6,3451.5,4.6185]
[1754199047702,0.6793,3451.6,3451.5,4.6185]
[1754199047902,0.4641,3451.9,3451.5,4.6185]
[1754199047903,1.3147,3451.9,3451.8,1.4107]
[1754199048412,1.7202,3451.9,3451.8,1.4107]
[1754199048710,1.7202,3451.9,3451.8,1.411]
[1754199048711,2.1258,3451.9,3451.8,1.411]
[1754199050714,0.8506,3451.7,3451.6,0.57952]
[1754199051012,2.1258,3451.7,3451.5,3.2078]
[1754199051211,2.1258,3451.6,3451.5,3.2078]
[1754199051412,0.8506,3451.6,3451.5,3.2078]
[1754199051707,2.1258,3451.6,3451.5,3.2078]
[1754199052113,0.8506,3451.6,3451.3,0.401]
[1754199052314,0.8506,3451.4,3451.3,0.401]
[1754199052516,2.1258,3451.4,3451.3,0.401]
[1754199053207,2.1258,3451.4,3451.3,0.6587]
[1754199053412,2.1258,3451.4,3451.3,1.0904]
[1754199054710,2.1258,3451.4,3451.1,3.7874]
[1754199054910,2.1258,3451.2,3451.1,5.1984]
[1754199055911,1.549,3451.7,3451.6,1.01]
[1754199056115,0.6793,3451.7,3451.6,4.2178]
[1754199056417,0.6793,3451.7,3451.6,4.6188]
[1754199056610,2.1258,3451.7,3451.6,4.6188]